[Event "7th Paul Keres Memorial Festival 2026 Classic A"]
[Site "ESTONIA Resort Hotel & Spa conference center, EE"]
[Date "2026.07.27"]
[Round "1"]
[White "Ostlund, Anders"]
[Black "Grave, Jacob Templen"]
[Result "0-1"]
[Board "9"]
[TimeControl "5400+30"]
[WhiteFideId "1706160"]
[BlackFideId "1542656"]
[WhiteElo "2044"]
[BlackElo "2392"]
[BlackTitle "FM"]
[WhiteClock "0:12:35"]
[BlackClock "0:09:40"]
[Variant "Standard"]
[EndDate "2026.07.27"]
[EndTime "16:41:37"]

1. e4 {[%clk 1:30:50]}  e5 {[%clk 1:30:36]} 2. Bc4 {[%clk 1:30:51]}  Nf6 {[%clk 1:30:46]} 3. Nc3 {[%clk 1:30:22]}  Bc5 {[%clk 1:29:18]}
4. Nf3 {[%clk 1:29:53]}  Nc6 {[%clk 1:28:30]} 5. d3 {[%clk 1:29:40]}  h6 {[%clk 1:24:59]} 6. a3 {[%clk 1:28:33]}  a6 {[%clk 1:13:48]}
7. Nd5 {[%clk 1:15:02]}  d6 {[%clk 1:21:25]} 8. Be3 {[%clk 1:14:03]}  Nxd5 {[%clk 1:15:26]} 9. Bxd5 {[%clk 1:08:49]}  Ne7 {[%clk 1:08:34]}
10. Ba2 {[%clk 1:07:03]}  Ng6 {[%clk 1:04:35]} 11. d4 {[%clk 0:51:56]}  exd4 {[%clk 0:59:44]} 12. Bxd4 {[%clk 0:51:20]}  Bxd4 {[%clk 0:58:32]}
13. Qxd4 {[%clk 0:46:59]}  O-O {[%clk 0:56:59]} 14. O-O-O {[%clk 0:43:39]}  Bg4 {[%clk 0:44:12]} 15. Rde1 {[%clk 0:37:26]}  Bxf3 {[%clk 0:40:58]}
16. gxf3 {[%clk 0:37:18]}  Qg5+ {[%clk 0:40:50]} 17. Kb1 {[%clk 0:36:27]}  Qe5 {[%clk 0:39:48]} 18. Qe3 {[%clk 0:33:18]}  Nf4 {[%clk 0:38:23]}
19. Rhg1 {[%clk 0:33:27]}  g5 {[%clk 0:26:11]} 20. h4 {[%clk 0:32:48]}  Kg7 {[%clk 0:26:24]} 21. hxg5 {[%clk 0:30:12]}  hxg5 {[%clk 0:26:47]}
22. Rg4 {[%clk 0:30:28]}  Kf6 {[%clk 0:24:40]} 23. Reg1 {[%clk 0:28:59]}  Rg8 {[%clk 0:23:47]} 24. Rh1 {[%clk 0:28:34]}  Rh8 {[%clk 0:23:13]}
25. Rhg1 {[%clk 0:28:45]}  b5 {[%clk 0:21:56]} 26. b4 {[%clk 0:25:36]}  Rh5 {[%clk 0:19:13]} 27. Qb3 {[%clk 0:26:08]}  Rf8 {[%clk 0:19:12]}
28. c4 {[%clk 0:25:36]}  Ne2 {[%clk 0:17:42]} 29. Re1 {[%clk 0:24:15]}  Nc3+ {[%clk 0:16:37]} 30. Kc2 {[%clk 0:21:40]}  Rh2 {[%clk 0:15:46]}
31. Rf1 {[%clk 0:20:39]}  Ne2 {[%clk 0:14:39]} 32. Kd1 {[%clk 0:19:56]}  Nf4 {[%clk 0:14:04]} 33. Kc2 {[%clk 0:19:55]}  c5 {[%clk 0:12:40]}
34. bxc5 {[%clk 0:13:06]}  dxc5 {[%clk 0:11:30]} 35. Qe3 {[%clk 0:13:06]}  Rd8 {[%clk 0:10:24]} 36. Qc3 {[%clk 0:12:12]}  Qxc3+ {[%clk 0:10:13]}
37. Kxc3 {[%clk 0:12:35]}  Rd3+ {[%clk 0:09:40]} 0-1

[Event "7th Paul Keres Memorial Festival 2026 Classic A"]
[Site "ESTONIA Resort Hotel & Spa conference center, EE"]
[Date "2026.07.27"]
[Round "1"]
[White "Kirk, Ezra"]
[Black "Milius, Ignas"]
[Result "1-0"]
[Board "10"]
[TimeControl "5400+30"]
[WhiteFideId "600067"]
[BlackFideId "12826618"]
[WhiteElo "2378"]
[BlackElo "2027"]
[WhiteTitle "IM"]
[WhiteClock "0:01:38"]
[BlackClock "0:01:09"]
[Variant "Standard"]
[EndDate "2026.07.27"]
[EndTime "17:04:10"]

1. e4 {[%clk 1:30:56]}  c5 {[%clk 1:30:54]} 2. Nf3 {[%clk 1:31:21]}  d6 {[%clk 1:31:17]} 3. Bb5+ {[%clk 1:31:32]}  Bd7 {[%clk 1:31:38]}
4. c4 {[%clk 1:30:39]}  Bxb5 {[%clk 1:25:34]} 5. cxb5 {[%clk 1:30:59]}  Nf6 {[%clk 1:25:51]} 6. Nc3 {[%clk 1:31:12]}  g6 {[%clk 1:20:49]}
7. d4 {[%clk 1:30:56]}  cxd4 {[%clk 1:21:12]} 8. Nxd4 {[%clk 1:31:18]}  Bg7 {[%clk 1:21:26]} 9. O-O {[%clk 1:31:18]}  O-O {[%clk 1:20:49]}
10. Be3 {[%clk 1:30:44]}  Nbd7 {[%clk 1:19:39]} 11. Nb3 {[%clk 1:30:17]}  Rc8 {[%clk 1:13:04]} 12. a4 {[%clk 1:24:04]}  a5 {[%clk 1:09:23]}
13. f4 {[%clk 1:16:00]}  Rc4 {[%clk 0:58:45]} 14. Nd2 {[%clk 1:04:06]}  Rb4 {[%clk 0:55:50]} 15. Rb1 {[%clk 0:51:59]}  Nc5 {[%clk 0:44:51]}
16. Bxc5 {[%clk 0:48:26]}  dxc5 {[%clk 0:45:06]} 17. Qe2 {[%clk 0:47:52]}  Ng4 {[%clk 0:26:36]} 18. e5 {[%clk 0:44:11]}  Qd4+ {[%clk 0:19:46]}
19. Kh1 {[%clk 0:44:16]}  Ne3 {[%clk 0:19:00]} 20. Rf3 {[%clk 0:43:13]}  Nd5 {[%clk 0:16:02]} 21. Nde4 {[%clk 0:40:39]}  Nxc3 {[%clk 0:12:06]}
22. Nxc3 {[%clk 0:40:50]}  Qc4 {[%clk 0:06:18]} 23. Qd1 {[%clk 0:30:07]}  Qd4 {[%clk 0:05:44]} 24. Qe1 {[%clk 0:29:41]}  f6 {[%clk 0:05:26]}
25. b3 {[%clk 0:22:12]}  c4 {[%clk 0:04:31]} 26. Rd1 {[%clk 0:20:46]}  Qc5 {[%clk 0:05:00]} 27. exf6 {[%clk 0:12:52]}  Bxf6 {[%clk 0:05:28]}
28. Ne4 {[%clk 0:09:26]}  Qc7 {[%clk 0:05:56]} 29. bxc4 {[%clk 0:09:02]}  Rxc4 {[%clk 0:06:00]} 30. f5 {[%clk 0:08:30]}  g5 {[%clk 0:03:20]}
31. Re3 {[%clk 0:03:11]}  Qf4 {[%clk 0:00:47]} 32. Nxf6+ {[%clk 0:02:14]}  Rxf6 {[%clk 0:01:16]} 33. Rxe7 {[%clk 0:02:10]}  Qxf5 {[%clk 0:01:24]}
34. Rd8+ {[%clk 0:01:03]}  Rf8 {[%clk 0:01:52]} 35. Ree8 {[%clk 0:00:42]}  Rxe8 {[%clk 0:01:45]} 36. Qxe8+ {[%clk 0:00:38]}  Kg7 {[%clk 0:02:14]}
37. Qe7+ {[%clk 0:00:51]}  Kh6 {[%clk 0:02:01]} 38. Rd6+ {[%clk 0:01:07]}  Kh5 {[%clk 0:02:29]} 39. Qe8+ {[%clk 0:01:15]}  Kh4 {[%clk 0:00:40]}
40. Rh6+ {[%clk 0:01:21]}  Kg4 {[%clk 0:01:09]} 41. Qe2+ {[%clk 0:01:38]} 1-0

[Event "7th Paul Keres Memorial Festival 2026 Classic A"]
[Site "ESTONIA Resort Hotel & Spa conference center, EE"]
[Date "2026.07.28"]
[Round "2"]
[White "Lagarde, Maxime"]
[Black "Platonovs, Nikolajs"]
[Result "1-0"]
[Board "1"]
[TimeControl "5400+30"]
[WhiteFideId "662399"]
[BlackFideId "11622598"]
[WhiteElo "2622"]
[BlackElo "2240"]
[WhiteTitle "GM"]
[BlackTitle "CM"]
[WhiteClock "0:25:28"]
[BlackClock "0:40:56"]
[Variant "Standard"]
[EndDate "2026.07.28"]
[EndTime "09:33:24"]

1. e4 {[%clk 1:28:15]}  c5 {[%clk 1:30:56]} 2. Nf3 {[%clk 1:28:35]}  d6 {[%clk 1:31:21]} 3. Bb5+ {[%clk 1:29:02]}  Nd7 {[%clk 1:31:45]}
4. Ba4 {[%clk 1:29:15]}  Ngf6 {[%clk 1:32:02]} 5. O-O {[%clk 1:29:37]}  e6 {[%clk 1:32:08]} 6. d3 {[%clk 1:29:56]}  Be7 {[%clk 1:32:26]}
7. c4 {[%clk 1:30:21]}  O-O {[%clk 1:32:35]} 8. Nc3 {[%clk 1:30:47]}  a6 {[%clk 1:29:54]} 9. Qe2 {[%clk 1:30:27]}  Qc7 {[%clk 1:29:55]}
10. h3 {[%clk 1:19:43]}  Rb8 {[%clk 1:23:29]} 11. Nh2 {[%clk 1:09:14]}  d5 {[%clk 1:10:35]} 12. Bxd7 {[%clk 0:57:34]}  Qxd7 {[%clk 1:10:02]}
13. Bf4 {[%clk 0:55:51]}  Ra8 {[%clk 1:09:53]} 14. exd5 {[%clk 0:43:06]}  exd5 {[%clk 1:10:15]} 15. Ng4 {[%clk 0:37:33]}  dxc4 {[%clk 1:04:14]}
16. Rfe1 {[%clk 0:35:53]}  Nxg4 {[%clk 0:54:24]} 17. Qxe7 {[%clk 0:35:58]}  Qd4 {[%clk 0:50:30]} 18. Ne4 {[%clk 0:25:10]}  Nxf2 {[%clk 0:43:47]}
19. Be3 {[%clk 0:25:08]}  Nxh3+ {[%clk 0:44:12]} 20. gxh3 {[%clk 0:25:32]}  Qxb2 {[%clk 0:44:13]} 21. Rab1 {[%clk 0:25:21]}  Qc2 {[%clk 0:40:56]}
22. Nf6+ {[%clk 0:25:28]} 1-0

[Event "7th Paul Keres Memorial Festival 2026 Classic A"]
[Site "ESTONIA Resort Hotel & Spa conference center, EE"]
[Date "2026.07.28"]
[Round "2"]
[White "Kubicka, Anna"]
[Black "Kazakouski, Valery"]
[Result "0-1"]
[Board "2"]
[TimeControl "5400+30"]
[WhiteFideId "1152254"]
[BlackFideId "13507443"]
[WhiteElo "2236"]
[BlackElo "2594"]
[WhiteTitle "WIM"]
[BlackTitle "GM"]
[WhiteClock "0:00:45"]
[BlackClock "0:23:27"]
[Variant "Standard"]
[EndDate "2026.07.28"]
[EndTime "10:24:44"]

1. e4 {[%clk 1:30:55]}  c5 {[%clk 1:30:32]} 2. Nf3 {[%clk 1:31:13]}  d6 {[%clk 1:30:55]} 3. Bb5+ {[%clk 1:31:19]}  Nd7 {[%clk 1:31:09]}
4. O-O {[%clk 1:31:24]}  a6 {[%clk 1:31:33]} 5. Bxd7+ {[%clk 1:31:38]}  Bxd7 {[%clk 1:31:31]} 6. c3 {[%clk 1:31:49]}  Nf6 {[%clk 1:30:27]}
7. Re1 {[%clk 1:32:05]}  e6 {[%clk 1:30:25]} 8. d4 {[%clk 1:32:20]}  cxd4 {[%clk 1:29:42]} 9. cxd4 {[%clk 1:32:43]}  d5 {[%clk 1:30:07]}
10. e5 {[%clk 1:32:58]}  Ne4 {[%clk 1:30:28]} 11. Re3 {[%clk 1:33:03]}  Be7 {[%clk 1:29:53]} 12. Nc3 {[%clk 1:31:52]}  Bc6 {[%clk 1:25:49]}
13. Nd2 {[%clk 1:17:26]}  Nxc3 {[%clk 1:16:49]} 14. Rxc3 {[%clk 1:17:11]}  O-O {[%clk 1:04:39]} 15. Rh3 {[%clk 1:08:36]}  Be8 {[%clk 0:51:18]}
16. Qh5 {[%clk 0:39:43]}  h6 {[%clk 0:51:37]} 17. Qg4 {[%clk 0:32:39]}  f5 {[%clk 0:49:54]} 18. exf6 {[%clk 0:25:43]}  Rxf6 {[%clk 0:50:02]}
19. Nf3 {[%clk 0:24:22]}  Rg6 {[%clk 0:45:48]} 20. Qf4 {[%clk 0:24:38]}  Rc8 {[%clk 0:44:44]} 21. Ne5 {[%clk 0:17:33]}  Bd6 {[%clk 0:43:20]}
22. Bd2 {[%clk 0:12:11]}  Rc2 {[%clk 0:40:54]} 23. Rb3 {[%clk 0:07:14]}  b5 {[%clk 0:29:17]} 24. Rc1 {[%clk 0:06:18]}  Bxe5 {[%clk 0:27:00]}
25. dxe5 {[%clk 0:06:39]}  Rc4 {[%clk 0:27:11]} 26. Rxc4 {[%clk 0:05:49]}  dxc4 {[%clk 0:26:37]} 27. Rg3 {[%clk 0:04:48]}  b4 {[%clk 0:24:51]}
28. Rxg6 {[%clk 0:01:12]}  Bxg6 {[%clk 0:25:12]} 29. h3 {[%clk 0:01:36]}  a5 {[%clk 0:25:19]} 30. Kh2 {[%clk 0:01:20]}  Qd3 {[%clk 0:24:36]}
31. Qe3 {[%clk 0:00:45]}  Qb1 {[%clk 0:23:27]} 32. Qb6 {[%clk 0:00:45]} 0-1

[Event "7th Paul Keres Memorial Festival 2026 Classic A"]
[Site "ESTONIA Resort Hotel & Spa conference center, EE"]
[Date "2026.07.28"]
[Round "2"]
[White "Zeng, Chongsheng"]
[Black "Meessen, Rudolf"]
[Result "1-0"]
[Board "3"]
[TimeControl "5400+30"]
[WhiteFideId "8603847"]
[BlackFideId "202029"]
[WhiteElo "2565"]
[BlackElo "2226"]
[WhiteTitle "GM"]
[BlackTitle "FM"]
[WhiteClock "0:29:06"]
[BlackClock "0:00:37"]
[Variant "Standard"]
[EndDate "2026.07.28"]
[EndTime "10:25:21"]

1. Nf3 {[%clk 1:27:19]}  d6 {[%clk 1:30:32]} 2. d4 {[%clk 1:27:24]}  Nf6 {[%clk 1:30:39]} 3. c4 {[%clk 1:27:48]}  g6 {[%clk 1:30:49]}
4. Nc3 {[%clk 1:28:13]}  Bg7 {[%clk 1:31:16]} 5. e4 {[%clk 1:28:36]}  Bg4 {[%clk 1:30:58]} 6. Be2 {[%clk 1:28:03]}  Bxf3 {[%clk 1:31:22]}
7. Bxf3 {[%clk 1:28:11]}  e5 {[%clk 1:31:45]} 8. d5 {[%clk 1:25:31]}  h5 {[%clk 1:32:10]} 9. b3 {[%clk 1:15:14]}  Nbd7 {[%clk 1:29:53]}
10. h4 {[%clk 1:13:25]}  a5 {[%clk 1:28:21]} 11. Rb1 {[%clk 1:08:08]}  Bh6 {[%clk 1:24:15]} 12. Bb2 {[%clk 1:07:05]}  O-O {[%clk 1:21:05]}
13. g3 {[%clk 1:06:48]}  Qe7 {[%clk 1:19:49]} 14. a3 {[%clk 1:05:12]}  c5 {[%clk 1:11:49]} 15. dxc6 {[%clk 1:03:19]}  bxc6 {[%clk 1:12:14]}
16. O-O {[%clk 0:59:13]}  Rab8 {[%clk 1:05:46]} 17. Na4 {[%clk 0:55:32]}  Nc5 {[%clk 1:00:01]} 18. Nxc5 {[%clk 0:55:48]}  dxc5 {[%clk 1:00:29]}
19. Bc3 {[%clk 0:56:11]}  Rfd8 {[%clk 0:56:48]} 20. Qc2 {[%clk 0:55:40]}  Ra8 {[%clk 0:43:14]} 21. Rfd1 {[%clk 0:55:08]}  Nd7 {[%clk 0:38:40]}
22. Bg2 {[%clk 0:55:02]}  g5 {[%clk 0:31:44]} 23. hxg5 {[%clk 0:49:04]}  Bxg5 {[%clk 0:27:26]} 24. Qe2 {[%clk 0:48:33]}  Nf6 {[%clk 0:23:10]}
25. Rxd8+ {[%clk 0:48:11]}  Rxd8 {[%clk 0:23:17]} 26. Bxa5 {[%clk 0:47:34]}  Ra8 {[%clk 0:23:30]} 27. b4 {[%clk 0:45:18]}  Kg7 {[%clk 0:20:00]}
28. Qf3 {[%clk 0:43:54]}  cxb4 {[%clk 0:18:12]} 29. Qf5 {[%clk 0:38:30]}  Rxa5 {[%clk 0:14:57]} 30. Qxg5+ {[%clk 0:38:55]}  Kf8 {[%clk 0:15:18]}
31. Rxb4 {[%clk 0:36:17]}  Qd6 {[%clk 0:15:27]} 32. Qh6+ {[%clk 0:33:38]}  Kg8 {[%clk 0:13:10]} 33. Rb1 {[%clk 0:33:24]}  c5 {[%clk 0:10:50]}
34. Qg5+ {[%clk 0:32:19]}  Kf8 {[%clk 0:11:07]} 35. Bf3 {[%clk 0:31:11]}  Rxa3 {[%clk 0:07:26]} 36. Rd1 {[%clk 0:29:48]}  Nxe4 {[%clk 0:07:26]}
37. Qxh5 {[%clk 0:29:14]}  Nd2 {[%clk 0:00:37]} 38. Bd5 {[%clk 0:29:06]} 1-0

[Event "7th Paul Keres Memorial Festival 2026 Classic A"]
[Site "ESTONIA Resort Hotel & Spa conference center, EE"]
[Date "2026.07.28"]
[Round "2"]
[White "Laurusas, Tomas"]
[Black "De Seroux, Camille"]
[Result "1-0"]
[Board "4"]
[TimeControl "5400+30"]
[WhiteFideId "12803731"]
[BlackFideId "1305620"]
[WhiteElo "2511"]
[BlackElo "2170"]
[WhiteTitle "GM"]
[BlackTitle "WIM"]
[WhiteClock "0:26:57"]
[BlackClock "0:02:30"]
[Variant "Standard"]
[EndDate "2026.07.28"]
[EndTime "10:20:08"]

1. d4 {[%clk 1:29:35]}  Nf6 {[%clk 1:28:33]} 2. c4 {[%clk 1:29:40]}  e6 {[%clk 1:28:55]} 3. Nf3 {[%clk 1:30:05]}  Bb4+ {[%clk 1:29:17]}
4. Nbd2 {[%clk 1:30:21]}  c5 {[%clk 1:28:14]} 5. a3 {[%clk 1:30:32]}  Bxd2+ {[%clk 1:28:00]} 6. Qxd2 {[%clk 1:30:55]}  b6 {[%clk 1:20:32]}
7. e3 {[%clk 1:21:22]}  Bb7 {[%clk 1:18:09]} 8. Be2 {[%clk 1:16:23]}  O-O {[%clk 1:16:06]} 9. b3 {[%clk 1:13:58]}  Ne4 {[%clk 1:09:41]}
10. Qc2 {[%clk 1:14:21]}  f5 {[%clk 0:59:48]} 11. Bb2 {[%clk 1:12:58]}  d6 {[%clk 0:50:14]} 12. Rd1 {[%clk 1:10:00]}  Nd7 {[%clk 0:47:18]}
13. O-O {[%clk 1:06:53]}  Ng5 {[%clk 0:40:45]} 14. Ne1 {[%clk 1:05:06]}  f4 {[%clk 0:25:51]} 15. exf4 {[%clk 0:48:16]}  Rxf4 {[%clk 0:25:24]}
16. f3 {[%clk 0:48:42]}  Qe7 {[%clk 0:11:16]} 17. dxc5 {[%clk 0:44:25]}  dxc5 {[%clk 0:04:59]} 18. Qd2 {[%clk 0:42:24]}  Rf7 {[%clk 0:05:17]}
19. h4 {[%clk 0:42:49]}  Nh3+ {[%clk 0:04:12]} 20. gxh3 {[%clk 0:43:11]}  Qxh4 {[%clk 0:04:35]} 21. Kh2 {[%clk 0:41:22]}  Nf6 {[%clk 0:04:13]}
22. Ng2 {[%clk 0:38:31]}  Qh5 {[%clk 0:03:40]} 23. Qe3 {[%clk 0:34:10]}  Raf8 {[%clk 0:02:42]} 24. Qe5 {[%clk 0:33:39]}  Qh6 {[%clk 0:01:45]}
25. Bc1 {[%clk 0:33:22]}  Qg6 {[%clk 0:01:32]} 26. Bd3 {[%clk 0:33:38]}  Qh5 {[%clk 0:01:41]} 27. Qxh5 {[%clk 0:27:46]}  Nxh5 {[%clk 0:02:09]}
28. f4 {[%clk 0:25:25]}  Bxg2 {[%clk 0:01:13]} 29. Kxg2 {[%clk 0:25:48]}  Nxf4+ {[%clk 0:01:38]} 30. Rxf4 {[%clk 0:26:10]}  Rxf4 {[%clk 0:02:03]}
31. Bxf4 {[%clk 0:26:34]}  Rxf4 {[%clk 0:02:30]} 32. Be2 {[%clk 0:26:57]} 1-0

[Event "7th Paul Keres Memorial Festival 2026 Classic A"]
[Site "ESTONIA Resort Hotel & Spa conference center, EE"]
[Date "2026.07.28"]
[Round "2"]
[White "Zhao, Yunqing"]
[Black "Keinanen, Toivo"]
[Result "0-1"]
[Board "5"]
[TimeControl "5400+30"]
[WhiteFideId "8626260"]
[BlackFideId "509825"]
[WhiteElo "2169"]
[BlackElo "2495"]
[WhiteTitle "WIM"]
[BlackTitle "IM"]
[WhiteClock "0:00:33"]
[BlackClock "0:18:09"]
[Variant "Standard"]
[EndDate "2026.07.28"]
[EndTime "10:41:22"]

1. Nf3 {[%clk 1:27:57]}  d5 {[%clk 1:30:02]} 2. d4 {[%clk 1:28:16]}  Nf6 {[%clk 1:29:21]} 3. c4 {[%clk 1:28:21]}  e6 {[%clk 1:29:45]}
4. Nc3 {[%clk 1:28:27]}  Be7 {[%clk 1:27:09]} 5. Bf4 {[%clk 1:27:33]}  dxc4 {[%clk 1:27:15]} 6. Qa4+ {[%clk 1:20:09]}  c6 {[%clk 1:27:06]}
7. Qxc4 {[%clk 1:20:32]}  b5 {[%clk 1:27:33]} 8. Qb3 {[%clk 1:17:10]}  O-O {[%clk 1:20:55]} 9. h3 {[%clk 1:13:27]}  Nbd7 {[%clk 1:16:35]}
10. e3 {[%clk 1:11:39]}  a6 {[%clk 1:16:44]} 11. Rd1 {[%clk 1:07:04]}  Qb6 {[%clk 1:09:03]} 12. a4 {[%clk 1:02:07]}  Bb7 {[%clk 1:05:34]}
13. Be2 {[%clk 0:58:59]}  b4 {[%clk 1:02:52]} 14. Nb1 {[%clk 0:59:05]}  c5 {[%clk 1:03:20]} 15. Nbd2 {[%clk 0:59:05]}  Bd5 {[%clk 1:01:23]}
16. Qd3 {[%clk 0:51:22]}  Rfc8 {[%clk 0:52:43]} 17. Nc4 {[%clk 0:41:05]}  Qa7 {[%clk 0:48:58]} 18. Qb1 {[%clk 0:26:58]}  Nb6 {[%clk 0:38:45]}
19. Nxb6 {[%clk 0:12:05]}  Qxb6 {[%clk 0:38:27]} 20. dxc5 {[%clk 0:12:28]}  Bxc5 {[%clk 0:34:49]} 21. Qa1 {[%clk 0:12:18]}  Qa5 {[%clk 0:30:48]}
22. O-O {[%clk 0:11:12]}  b3 {[%clk 0:30:03]} 23. Ne1 {[%clk 0:08:29]}  Be7 {[%clk 0:28:46]} 24. Bd3 {[%clk 0:01:38]}  Ne4 {[%clk 0:27:36]}
25. Bxe4 {[%clk 0:00:40]}  Bxe4 {[%clk 0:28:06]} 26. Bd6 {[%clk 0:00:39]}  Bf6 {[%clk 0:25:35]} 27. Nf3 {[%clk 0:00:40]}  Bxf3 {[%clk 0:25:03]}
28. gxf3 {[%clk 0:01:05]}  Rc2 {[%clk 0:25:32]} 29. Qa3 {[%clk 0:00:38]}  Rxb2 {[%clk 0:25:01]} 30. Rd3 {[%clk 0:00:49]}  Qb6 {[%clk 0:22:34]}
31. Bc5 {[%clk 0:00:38]}  Qc6 {[%clk 0:20:14]} 32. Bd4 {[%clk 0:00:34]}  Bxd4 {[%clk 0:20:30]} 33. exd4 {[%clk 0:00:32]}  Qc2 {[%clk 0:20:40]}
34. Re3 {[%clk 0:00:39]}  h6 {[%clk 0:20:49]} 35. Qb4 {[%clk 0:00:39]}  Rd8 {[%clk 0:20:42]} 36. Qb6 {[%clk 0:00:47]}  Rd5 {[%clk 0:20:36]}
37. f4 {[%clk 0:00:45]}  Qf5 {[%clk 0:19:06]} 38. Qb8+ {[%clk 0:00:33]}  Kh7 {[%clk 0:19:34]} 39. Rd1 {[%clk 0:00:32]}  Rb1 {[%clk 0:17:47]}
40. Rxb1 {[%clk 0:00:33]}  Qxb1+ {[%clk 0:18:15]} 41. Kg2 {[%clk 0:00:32]}  b2 {[%clk 0:17:58]} 42. Rb3 {[%clk 0:00:40]}  Qg6+ {[%clk 0:17:56]}
43. Kh2 {[%clk 0:00:33]}  Rxd4 {[%clk 0:18:09]} 0-1

[Event "7th Paul Keres Memorial Festival 2026 Classic A"]
[Site "ESTONIA Resort Hotel & Spa conference center, EE"]
[Date "2026.07.28"]
[Round "2"]
[White "Jakubowski, Krzysztof"]
[Black "Bleys, Michiel"]
[Result "0-1"]
[Board "6"]
[TimeControl "5400+30"]
[WhiteFideId "1112848"]
[BlackFideId "240702"]
[WhiteElo "2424"]
[BlackElo "2159"]
[WhiteTitle "GM"]
[WhiteClock "0:07:57"]
[BlackClock "0:03:03"]
[Variant "Standard"]
[EndDate "2026.07.28"]
[EndTime "10:55:00"]

1. e4 {[%clk 1:30:58]}  c5 {[%clk 1:29:16]} 2. Nf3 {[%clk 1:30:49]}  Nc6 {[%clk 1:29:38]} 3. d4 {[%clk 1:31:12]}  cxd4 {[%clk 1:29:58]}
4. Nxd4 {[%clk 1:31:36]}  Qb6 {[%clk 1:29:59]} 5. Nb3 {[%clk 1:31:58]}  Nf6 {[%clk 1:30:12]} 6. Nc3 {[%clk 1:32:16]}  e6 {[%clk 1:30:29]}
7. a3 {[%clk 1:32:33]}  Be7 {[%clk 1:30:11]} 8. Be3 {[%clk 1:32:02]}  Qc7 {[%clk 1:29:23]} 9. f4 {[%clk 1:32:14]}  d6 {[%clk 1:28:12]}
10. g4 {[%clk 1:29:02]}  a6 {[%clk 1:22:23]} 11. g5 {[%clk 1:28:51]}  Nd7 {[%clk 1:21:39]} 12. Qf3 {[%clk 1:20:56]}  b5 {[%clk 1:13:00]}
13. h4 {[%clk 1:17:11]}  Bb7 {[%clk 1:06:32]} 14. Qf2 {[%clk 1:11:11]}  Rc8 {[%clk 0:56:49]} 15. Bh3 {[%clk 1:07:11]}  b4 {[%clk 0:43:43]}
16. axb4 {[%clk 1:07:22]}  Nxb4 {[%clk 0:40:49]} 17. O-O {[%clk 1:02:08]}  O-O {[%clk 0:34:31]} 18. f5 {[%clk 1:01:25]}  exf5 {[%clk 0:30:41]}
19. Ra4 {[%clk 0:53:46]}  d5 {[%clk 0:25:58]} 20. exf5 {[%clk 0:48:35]}  Bd6 {[%clk 0:21:11]} 21. f6 {[%clk 0:46:15]}  g6 {[%clk 0:19:59]}
22. Nd4 {[%clk 0:46:06]}  Rce8 {[%clk 0:17:14]} 23. Bf4 {[%clk 0:44:51]}  Ne5 {[%clk 0:15:09]} 24. Rd1 {[%clk 0:32:46]}  Qb6 {[%clk 0:13:58]}
25. Ne6 {[%clk 0:25:04]}  Nf3+ {[%clk 0:07:09]} 26. Kf1 {[%clk 0:24:43]}  d4 {[%clk 0:06:17]} 27. Nxf8 {[%clk 0:14:49]}  Bxf4 {[%clk 0:05:10]}
28. Nd7 {[%clk 0:12:31]}  Qd6 {[%clk 0:03:17]} 29. Bg2 {[%clk 0:06:28]}  Nh2+ {[%clk 0:03:21]} 30. Kg1 {[%clk 0:06:54]}  Be3 {[%clk 0:03:23]}
31. Qxe3 {[%clk 0:07:11]}  Rxe3 {[%clk 0:03:43]} 32. Bxb7 {[%clk 0:07:38]}  Qg3+ {[%clk 0:03:08]} 33. Kh1 {[%clk 0:07:57]}  Ng4 {[%clk 0:03:03]} 0-1

[Event "7th Paul Keres Memorial Festival 2026 Classic A"]
[Site "ESTONIA Resort Hotel & Spa conference center, EE"]
[Date "2026.07.28"]
[Round "2"]
[White "Praczukowski, Stanislaw"]
[Black "Ostensen, Nicolai Maxime"]
[Result "0-1"]
[Board "7"]
[TimeControl "5400+30"]
[WhiteFideId "1182730"]
[BlackFideId "1546970"]
[WhiteElo "2159"]
[BlackElo "2407"]
[BlackTitle "FM"]
[WhiteClock "0:15:05"]
[BlackClock "0:07:06"]
[Variant "Standard"]
[EndDate "2026.07.28"]
[EndTime "10:32:03"]

1. e4 {[%clk 1:30:46]}  c5 {[%clk 1:30:48]} 2. Nf3 {[%clk 1:31:16]}  Nc6 {[%clk 1:31:03]} 3. d4 {[%clk 1:31:30]}  cxd4 {[%clk 1:31:26]}
4. Nxd4 {[%clk 1:31:56]}  e5 {[%clk 1:31:50]} 5. Nb5 {[%clk 1:32:00]}  d6 {[%clk 1:32:15]} 6. N1c3 {[%clk 1:32:17]}  a6 {[%clk 1:32:36]}
7. Na3 {[%clk 1:32:41]}  Be7 {[%clk 1:33:00]} 8. Nc4 {[%clk 1:32:14]}  b5 {[%clk 1:33:23]} 9. Ne3 {[%clk 1:32:33]}  Nf6 {[%clk 1:33:49]}
10. Bd3 {[%clk 1:32:26]}  O-O {[%clk 1:34:08]} 11. O-O {[%clk 1:32:12]}  Nb4 {[%clk 1:34:34]} 12. Be2 {[%clk 1:28:46]}  Be6 {[%clk 1:34:26]}
13. a3 {[%clk 1:22:06]}  Nc6 {[%clk 1:34:51]} 14. Bd3 {[%clk 1:22:24]}  Nd7 {[%clk 1:28:27]} 15. a4 {[%clk 1:17:28]}  b4 {[%clk 1:25:01]}
16. Ncd5 {[%clk 1:05:44]}  Nc5 {[%clk 1:12:20]} 17. Re1 {[%clk 1:13:31]}  Bg5 {[%clk 1:11:51]} 18. c3 {[%clk 1:07:20]}  Rb8 {[%clk 1:05:14]}
19. Bc2 {[%clk 1:05:18]}  g6 {[%clk 0:54:29]} 20. Bd2 {[%clk 1:00:00]}  b3 {[%clk 0:50:51]} 21. Bb1 {[%clk 0:55:54]}  f5 {[%clk 0:38:58]}
22. exf5 {[%clk 0:48:37]}  gxf5 {[%clk 0:38:07]} 23. Nf1 {[%clk 0:40:26]}  Kh8 {[%clk 0:35:37]} 24. Ng3 {[%clk 0:35:03]}  Bxd2 {[%clk 0:17:55]}
25. Qxd2 {[%clk 0:33:22]}  Na5 {[%clk 0:17:38]} 26. Nb4 {[%clk 0:31:03]}  Nc4 {[%clk 0:17:05]} 27. Qe2 {[%clk 0:28:53]}  Qg5 {[%clk 0:15:29]}
28. Nd3 {[%clk 0:22:07]}  e4 {[%clk 0:14:23]} 29. Nxc5 {[%clk 0:22:03]}  dxc5 {[%clk 0:14:49]} 30. f3 {[%clk 0:17:29]}  Rbd8 {[%clk 0:13:48]}
31. Nf1 {[%clk 0:16:13]}  Ne5 {[%clk 0:11:34]} 32. Kh1 {[%clk 0:15:07]}  Bc4 {[%clk 0:10:42]} 33. Qf2 {[%clk 0:15:22]}  Bxf1 {[%clk 0:10:02]}
34. Qxf1 {[%clk 0:15:05]}  Qh5 {[%clk 0:07:06]} 0-1